Cogmind - Beta 14 @@@ ROGUE MODE // 2025.01.18 @ 13:46:59 Player: Darsidian Result: Destroyed by H-55 Commando with Assault Rifle Performance ------------- Evolutions (2) 1000 Regions Visited (6) 1200 Robots Destroyed (107) 535 Value Destroyed (3798) 3798 Prototype IDs (6) 120 Alien Tech Used (0) 0 Bonus (1702) 1702 TOTAL SCORE: 8355 Bonus ------- High Alert Combat Kills 427 Follower Combat Kills 75 Entered Garrisons 200 Used RIF Installer 1000 Cogmind --------- Core Integrity 0/550 Matter 189/300 Energy 475/515 System Corruption 3% Temperature Warm (167) Movement Rolling (140) Ox3 Location -8/Materials Parts ------- > --- POWER (1) -------- Improved Ion Engine > --- PROPULSION (3) --- Carbon-fiber Leg Compact Wheel Armored Wheel > --- UTILITY (5) ------ Huge Storage Unit High-capacity Battery Improved Signal Interpreter Reflective Plating System Shield > --- WEAPON (2) ------- Beamcaster Heavy Assault Rifle > --- INVENTORY (25) --- Improved Ion Engine Large Matter Pod (150) Improved Sensor Array Core Analyzer Core Shielding Hardlight Generator Hacking Suite Authchip [R/NC] Relay Coupler [NC] (23) Relay Coupler [Swarmer] (37) Relay Coupler [Sentry] (24) Relay Coupler [Hunter] Relay Coupler [Heavy] (13) Relay Coupler [Behemoth] (8) Heavy EM Shotgun Heavy Assault Rifle Gauss Cannon Rocket Launcher Improved Grenade Launcher Improved Datajack Plasma Cutter Scythe Peak State ------------ > --- POWER ------------ Improved Ion Engine > --- PROPULSION ------- Carbon-fiber Leg Compact Wheel Armored Wheel > --- UTILITY ---------- Huge Storage Unit Improved Signal Interpreter Reflective Plating Hardlight Generator System Shield > --- WEAPON ----------- Beamcaster Heavy Assault Rifle > --- INVENTORY -------- Improved Ion Engine High-capacity Battery Large Matter Pod Improved Sensor Array Core Analyzer Core Shielding Hacking Suite Authchip [R/NC] Relay Coupler [NC] Relay Coupler [Swarmer] Relay Coupler [Sentry] Relay Coupler [Hunter] Relay Coupler [Heavy] Relay Coupler [Behemoth] Heavy EM Shotgun Heavy Assault Rifle Gauss Cannon Rocket Launcher Improved Grenade Launcher Improved Datajack Plasma Cutter Scythe [Rating: 34] Favorites ----------- Power Improved Ion Engine Engine Improved Ion Engine Power Core Light Nuclear Core Propulsion Armored Wheel Treads Light Treads Leg Improved Aluminum Leg Wheel Armored Wheel Utility High-capacity Storage Unit Device Improved Heat Sink Storage High-capacity Storage Unit Processor Improved Signal Interpreter Hackware Hacking Suite Protection Light Armor Plating Weapon Beam Cannon Energy Gun Heavy Particle Gun Energy Cannon Beam Cannon Ballistic Gun Heavy Assault Rifle Launcher Rocket Launcher Special Weapon Mining Laser Slashing Weapon Scythe Special Melee Weapon Improved Datajack Build | -11 -10 -10 -10 -8 -8 -8 ------- Run | Yrd Mat Min Sub Mat Gar Mat Slots Evolved 4 | . . . . 4 . . Power . | . . . . . . . Propulsion 1 | . . . . 1 . . Utility 3 | . . . . 3 . . Weapon . | . . . . . . . Parts Attached 166 | 7 29 6 5 53 49 17 Power 13 | 1 3 1 . 4 4 . Engine 10 | 1 3 . . 2 4 . Core 3 | . . 1 . 2 . . Reactor . | . . . . . . . Propulsion 31 | 2 8 1 . 9 10 1 Treads 2 | 2 . . . . . . Leg 5 | . 2 . . . 2 1 Wheel 24 | . 6 1 . 9 8 . Hover . | . . . . . . . Flight . | . . . . . . . Utility 48 | 2 5 1 1 22 10 7 Device 18 | 1 2 1 . 10 2 2 Storage 5 | 1 1 . . 2 . 1 Processor 7 | . 1 . 1 4 1 . Hackware 8 | . . . . 1 4 3 Protection 10 | . 1 . . 5 3 1 Artifact . | . . . . . . . Weapon 74 | 2 13 3 4 18 25 9 Energy Gun 26 | 1 2 1 2 12 6 2 Energy Cannon 4 | . 3 1 . . . . Ballistic Gun 17 | 1 5 . . 1 8 2 Ballistic Cannon . | . . . . . . . Launcher 12 | . 3 . 1 2 5 1 Special Weapon 1 | . . 1 . . . . Impact Weapon . | . . . . . . . Slashing Weapon 8 | . . . 1 2 4 1 Piercing Weapon . | . . . . . . . Special Melee Weapon 6 | . . . . 1 2 3 Unidentified Prototypes 3 | . . . . 3 . . Parts Lost 22 | . . 1 . 5 16 . Power 2 | . . . . . 2 . Propulsion 8 | . . . . 1 7 . Utility 6 | . . . . 3 3 . Weapon 6 | . . 1 . 1 4 . Highest Loss Streak 7 | . . 1 . 1 7 . To Critical Strikes . | . . . . . . . Average Slot Usage (%) 96 | . 100 99 100 98 92 91 Engine 6 | . 14 . . 4 6 9 Core 4 | . . 13 14 4 2 . Leg 1 | . 8 . . . 1 1 Wheel 22 | . 14 28 28 26 21 18 Device 8 | . 7 14 1 15 3 6 Storage 10 | . 14 14 14 9 9 9 Processor 8 | . 2 . 12 10 14 9 Hackware 3 | . . . . . 7 12 Protection 5 | . 4 . . 8 7 7 Energy Gun 9 | . 3 6 12 15 8 6 Energy Cannon 6 | . 14 21 14 . . . Ballistic Gun 4 | . 9 . . 1 5 7 Peak Build Rating 34 | 9 13 13 13 32 32 34 Average Rating 20 | 5 10 11 12 25 28 30 On Entrance 15 | . 9 11 12 13 30 30 Naked Turns . | . . . . . . . Heaviest Build 104 | 12 55 52 53 103 104 104 Greatest Support 44 | 40 40 26 26 44 44 28 Greatest Overweight (x) 7 | . 3 1 2 2 7 3 Average Overweight (x) 1 | . 1 1 1 1 2 3 Largest Inventory Capacity 25 | 8 20 20 20 25 25 25 Average Capacity 21 | 7 15 20 20 21 25 25 Most Carried 25 | 5 20 20 20 25 25 25 Average Carried 18 | 3 11 17 19 18 21 23 Final Capacity 25 | 8 20 20 20 25 25 25 Final Carried 25 | 5 20 18 20 25 22 22 Class Distribution -------------------- 54% | Scavenger-Mutant 27% | Mutant 17% | Bothacker-Mutant Dominant Class ---------------- Mutant | -10/Materials Scavenger-Mutant | -10/Mines Scavenger-Mutant | -10/Subcaves Scavenger-Mutant | -8/Materials Scavenger-Mutant | -8/Garrison Bothacker-Mutant | -8/Materials Resources | -11 -10 -10 -10 -8 -8 -8 ----------- Run | Yrd Mat Min Sub Mat Gar Mat Matter Collected 2430 | 249 588 86 82 578 671 176 Remotely . | . . . . . . . Salvage Created 4191 | 147 858 197 10 1667 938 374 Parts 229 | 7 54 10 3 101 38 16 Haulers Intercepted 6 | . 2 . . 4 . . Recyclers Shooed 5 | . 3 1 . 1 . . Parts Field Recycled . | . . . . . . . Retrieved Matter . | . . . . . . . Parts Self-Destructed 2 | . . . 2 . . . Prevented . | . . . . . . . Kills | -11 -10 -10 -10 -8 -8 -8 ------- Run | Yrd Mat Min Sub Mat Gar Mat Combat Hostiles Destroyed 67 | . 10 3 3 27 19 5 Guns 40 | . 2 1 1 20 13 3 Cannons 5 | . 2 2 . 1 . . AOE 21 | . 6 . 2 5 6 2 Classes Destroyed 14 | 3 6 . . 4 1 . Worker 12 | 1 7 1 . 3 . . Builder 1 | . 1 . . . . . Tunneler 3 | 3 . . . . . . Hauler 6 | . 2 . . 4 . . Recycler 11 | 1 5 1 . 2 . 2 Mechanic 1 | . . . . 1 . . Operator 1 | . 1 . . . . . Watcher 5 | . 3 . . 2 . . Swarmer 21 | . 6 2 3 3 7 . Grunt 30 | . 4 1 . 14 7 4 Brawler 1 | . . . . 1 . . Duelist 2 | . . . . . 2 . Sentry 12 | . . . . 8 3 1 Hunter 1 | . . . . 1 . . Best Kill Streak 5 | 4 5 2 3 5 4 4 Combat Bots Only 4 | . 3 2 3 3 4 3 Max Kills in Single Turn 3 | 2 3 1 1 3 2 2 Gunslinging . | . . . . . . . Exploded 3 | . 3 . 1 3 2 2 Melee . | . . . . . . . Uniques/NPCs Destroyed . | . . . . . . . Combat | -11 -10 -10 -10 -8 -8 -8 -------- Run | Yrd Mat Min Sub Mat Gar Mat Hostile Shots Fired 300 | . 47 10 9 100 102 32 Missed 79 | . 13 . 1 30 24 11 Damage Taken 3686 | . 582 97 122 1131 1485 269 Core 787 | . 142 18 69 220 296 42 Absorbed by Shields 84 | . . . . 24 20 40 Redirected to Shielding 12 | . . . . . 12 . Ignored by Resistances 28 | . . . . . . 28 Regen/Repaired (Parts) 49 | . 15 . . 34 . . Core Remaining (%) 54 | 100 . . 8 . . . Volleys Fired 292 | 12 65 14 6 96 83 16 Largest 2 | 2 2 2 2 2 2 2 Hottest 125 | 60 120 125 125 123 113 108 Shots Fired 558 | 24 126 28 10 187 151 32 Gun 451 | 24 67 2 4 180 143 31 Cannon 86 | . 54 26 4 2 . . Launcher 21 | . 5 . 2 5 8 1 Special . | . . . . . . . Kinetic 146 | 12 50 . . 2 67 15 Thermal 356 | . 54 28 8 180 70 16 Explosive 21 | . 5 . 2 5 8 1 Electromagnetic 35 | 12 17 . . . 6 . Robot Hit Streak 37 | 3 10 6 1 17 37 9 Robot Miss Streak 5 | 3 5 2 2 5 4 2 Penetration Max . | . . . . . . . Secondary Targets 2 | . . . . 1 1 . Max Gunslinging Chain 1 | . . . . 1 1 . Shots Hit Robots 354 | 12 65 18 1 127 102 29 Core Hits 177 | 7 42 4 2 66 47 9 Critical Kills . | . . . . . . . Critical Parts Destroyed 1 | . . . . . 1 . Critical Strikes 17 | . . . . 12 5 . Burn 16 | . . . . 12 4 . Destroy 1 | . . . . . 1 . Melee Attacks 36 | . . . 3 4 15 14 Impact . | . . . . . . . Slashing 20 | . . . 3 3 12 2 Piercing . | . . . . . . . Sneak Attacks 3 | . . . . 1 . 2 Combat Hostiles . | . . . . . . . Follow-up Attacks . | . . . . . . . Damage Inflicted 7710 | 219 1576 307 151 2845 2044 568 Guns 4742 | 146 337 13 13 2290 1511 432 Cannons 854 | . 525 294 . 35 . . Explosions 2114 | 73 714 . 138 520 533 136 Melee . | . . . . . . . Ramming . | . . . . . . . Kinetic 1011 | 54 232 . . 28 516 181 Thermal 4481 | 73 611 307 13 2297 929 251 Explosive 1915 | . 628 . 138 520 493 136 Electromagnetic 303 | 92 105 . . . 106 . Impact . | . . . . . . . Slashing . | . . . . . . . Piercing . | . . . . . . . Highest Corruption 3 | . 2 2 2 . . 3 Average Corruption 2 | . 1 2 2 . . 2 Corruption Purged . | . . . . . . . Corruption Blocked . | . . . . . . . Effects 30 | . 4 13 7 . . 6 Message Errors 5 | . 1 3 . . . 1 Matter Fused 10 | . 1 5 2 . . 2 Heat Flow Errors 3 | . 1 1 . . . 1 Energy Discharges 4 | . . 2 2 . . . Data Loss (minor) 1 | . . . . . . 1 Data Loss (major) 3 | . . 2 . . . 1 Misfires 2 | . 1 . 1 . . . Alerts 1 | . . . 1 . . . Weapon Failures 1 | . . . 1 . . . Overload Shots . | . . . . . . . Overflow Damage 184 | . 40 40 28 . 76 . Projectiles 40 | . . 40 . . . . Explosions 144 | . 40 . 28 . 76 . Melee . | . . . . . . . Knockbacks . | . . . . . . . Impact . | . . . . . . . Kinetic . | . . . . . . . Secondary . | . . . . . . . Self-Inflicted Damage 271 | . 90 . 35 . 146 . Shots 8 | . 3 . 1 . 4 . Rammed 1 | . . 1 . . . . Targets Rammed 1 | . . 1 . . . . Kicked . | . . . . . . . Crushed . | . . . . . . . Highest Temperature 348 | 40 333 264 18 348 290 182 Average Temperature 63 | 21 76 100 9 38 64 69 Received Heat Transfer 1227 | . 171 21 9 480 426 120 Effects 3 | . 1 . . 2 . . Interference 2 | . . . . 2 . . Short Circuit 1 | . 1 . . . . . Siege Activations . | . . . . . . . Robots Corrupted . | . . . . . . . Combat Hostiles . | . . . . . . . Parts Fried 3 | 1 2 . . . . . Impact Corruptions . | . . . . . . . Robots Melted 1 | . . . . 1 . . Combat Hostiles 1 | . . . . 1 . . Parts Melted 16 | . 1 . . 13 2 . Heat Transferred 10216 | 100 1260 666 37 5513 2196 444 Parts Sabotaged . | . . . . . . . Parts Stolen . | . . . . . . . Parts Stripped . | . . . . . . . Power Chain Reactions 4 | 1 2 . . . 1 . Alert | -11 -10 -10 -10 -8 -8 -8 ------- Run | Yrd Mat Min Sub Mat Gar Mat Peak Influence 1609 | 25 216 79 . 511 1609 811 Initial 783 | . 16 24 . . 332 783 Average 464 | 6 84 37 . 257 962 751 Maximum Alert Level 5 | . 1 . . 2 5 3 Low Security (%) 43 | 100 93 100 . 42 . . Level 1 11 | . 6 . . 31 9 . Level 2 13 | . . . . 26 14 21 Level 3 17 | . . . . . 35 78 Level 4 12 | . . . . . 38 . Level 5 . | . . . . . 2 . High Security . | . . . . . . . Max Security . | . . . . . . . Squads Dispatched 6 | . . . . 2 . 4 Investigation 1 | . . . . 1 . . Extermination . | . . . . . . . Reinforcement 5 | . . . . 1 . 4 Assault . | . . . . . . . Garrison . | . . . . . . . Intercept . | . . . . . . . Searches Triggered . | . . . . . . . Construction Impeded 2 | . . . . . . 2 Haulers Reinforced . | . . . . . . . Active Scanning Responses . | . . . . . . . Cargo Convoy Interrupts . | . . . . . . . Stealth | -11 -10 -10 -10 -8 -8 -8 --------- Run | Yrd Mat Min Sub Mat Gar Mat Distress Signals 4 | . . . . 1 . 3 Communications Jammed . | . . . . . . . Distress Signals . | . . . . . . . Times Spotted 106 | . 19 6 5 34 26 16 Peak Tracking Total 8 | . 4 3 3 4 8 5 Tactical Retreats 9 | . 1 . 1 1 4 2 Traps | -11 -10 -10 -10 -8 -8 -8 ------- Run | Yrd Mat Min Sub Mat Gar Mat Traps Triggered 13 | . 3 . . 1 7 2 Indirectly . | . . . . . . . Trap Hack Attempts . | . . . . . . . Triggered . | . . . . . . . Disarmed . | . . . . . . . Reprogrammed . | . . . . . . . Reused . | . . . . . . . Traps Extracted . | . . . . . . . Installed . | . . . . . . . Triggered . | . . . . . . . Machines | -11 -10 -10 -10 -8 -8 -8 ---------- Run | Yrd Mat Min Sub Mat Gar Mat Machines Disabled 12 | . . 1 . 2 8 1 Max in Single Turn 2 | . . 1 . 1 2 1 Garrison Relay 4 | . . . . . 4 . Phase Generator 1 | . . . . . 1 . Machines Repaired . | . . . . . . . Machines Dismantled . | . . . . . . . Machines Sabotaged . | . . . . . . . Overloaded Fab Kills . | . . . . . . . Hacking | -11 -10 -10 -10 -8 -8 -8 --------- Run | Yrd Mat Min Sub Mat Gar Mat Machines Accessed 26 | . 6 . 3 13 2 2 Terminals 16 | . 4 . . 8 2 2 Fabricators . | . . . . . . . Repair Stations 2 | . 1 . . 1 . . Recycling Units 3 | . 1 . . 2 . . Scanalyzers 1 | . . . . 1 . . Garrison Access 1 | . . . . 1 . . Total Hacks 64 | . 15 . 6 34 4 5 Successful 30 | . 7 . 6 16 1 . Failed 33 | . 7 . . 18 3 5 Catastrophic 8 | . . . . 3 2 3 Database Lockouts 1 | . 1 . . . . . Manual 34 | . 8 . . 18 3 5 Terminals 45 | . 12 . . 24 4 5 Fabricators . | . . . . . . . Repair Stations 5 | . 2 . . 3 . . Recycling Units 3 | . 1 . . 2 . . Scanalyzers 3 | . . . . 3 . . Garrison Access 2 | . . . . 2 . . Terminal Hacks 11 | . 1 . 6 3 1 . Record 4 | . . . 4 . . . Robot Analysis 1 | . . . . 1 . . Prototype ID Bank 2 | . 1 . . 1 . . Open Door 2 | . . . 1 . 1 . Hauler Manifests 1 | . . . . 1 . . Release Object 1 | . . . 1 . . . Fabricator Hacks . | . . . . . . . Repair Station Hacks 4 | . 2 . . 2 . . Scan Component 2 | . 1 . . 1 . . Repair 2 | . 1 . . 1 . . Recycling Unit Hacks 2 | . 1 . . 1 . . Report Inventory 2 | . 1 . . 1 . . Scanalyzer 3 | . . . . 3 . . Insert Component 1 | . . . . 1 . . Analyze 2 | . . . . 2 . . Garrison Access Hacks 1 | . . . . 1 . . Unlock Access 1 | . . . . 1 . . Unauthorized Hacks 9 | . 3 . . 6 . . Terminals 9 | . 3 . . 6 . . Track 1 | . . . . 1 . . Botnet 7 | . 3 . . 4 . . Operators 1 | . . . . 1 . . Fabricators . | . . . . . . . Repair Stations . | . . . . . . . Recycling Units . | . . . . . . . Scanalyzers . | . . . . . . . Garrison Access . | . . . . . . . Data Cores Recovered . | . . . . . . . Used . | . . . . . . . Hacking Detections 16 | . 4 . . 9 1 2 Full Trace Events 1 | . . . . 1 . . Feedback Events . | . . . . . . . Feedback Blocked . | . . . . . . . Robot Schematics Acquired . | . . . . . . . Robots Built . | . . . . . . . Authchips . | . . . . . . . Time . | . . . . . . . Total Robot Build Rating . | . . . . . . . Part Schematics Acquired 1 | . . . . 1 . . Parts Built . | . . . . . . . Authchips . | . . . . . . . Time . | . . . . . . . Total Part Build Rating . | . . . . . . . Parts Repaired 2 | . 1 . . 1 . . Time 58 | . 26 . . 32 . . Parts Recycled . | . . . . . . . Recycled Matter . | . . . . . . . Retrieved Matter . | . . . . . . . Retrieved Components . | . . . . . . . Parts Scanalyzed 1 | . . . . 1 . . Part Schematics Acquired 1 | . . . . 1 . . Parts Damaged . | . . . . . . . Bothacking | -11 -10 -10 -10 -8 -8 -8 ------------ Run | Yrd Mat Min Sub Mat Gar Mat Used RIF Installer 2 | . . . . . 2 . Threat Obfuscator 1 | . . . . . 1 . Robots Hacked 8 | . . . . 1 3 4 Non-combat 2 | . . . . 1 . 1 Combat 6 | . . . . . 3 3 Robot Hacks Applied 9 | . . . . 1 3 5 no_distress 1 | . . . . 1 . . map_route 1 | . . . . . . 1 relay_feed 1 | . . . . . . 1 reboot_system 1 | . . . . . 1 . overwrite_iff 1 | . . . . . . 1 formatsys_high 4 | . . . . . 2 2 Relay Couplers Released 17 | . . . . . 17 . Machine Destruction 17 | . . . . . 17 . Attached 5 | . . . . . 2 3 Fabnet Peak Effective % . | . . . . . . . Robots Rewired . | . . . . . . . Allies Hacked . | . . . . . . . Hacks Repelled . | . . . . . . . Allies | -11 -10 -10 -10 -8 -8 -8 -------- Run | Yrd Mat Min Sub Mat Gar Mat Total Allies 7 | . . 1 . . 3 3 Largest Group 3 | . . 1 1 . 3 2 Highest-Rated Group 61 | . . 31 31 . 61 44 Highest-Rated Ally 31 | . . 31 31 . 31 29 Total Orders . | . . . . . . . Ally Attacks 28 | . . 5 2 . 4 17 Total Damage 366 | . . 42 . . 79 245 Kills 3 | . . 1 . . 1 1 Allies Corrupted . | . . . . . . . Allies Melted 1 | . . . . . . 1 Intel | -11 -10 -10 -10 -8 -8 -8 ------- Run | Yrd Mat Min Sub Mat Gar Mat Robot Analysis Total 1 | . . . . 1 . . Derelict Logs Recovered 2 | . . 2 . . . . Drone Launches . | . . . . . . . Drone Recoveries . | . . . . . . . Exploration | -11 -10 -10 -10 -8 -8 -8 ------------- Run | Yrd Mat Min Sub Mat Gar Mat Turns Passed 7880 | 129 1257 1109 613 1781 2452 539 Spaces Moved 4998 | 54 714 815 529 1102 1506 278 Core 5 | 5 . . . . . . Treads 110 | 49 61 . . . . . Legs 136 | . 136 . . . . . Wheels 4747 | . 517 815 529 1102 1506 278 Hover . | . . . . . . . Flight . | . . . . . . . Fastest Speed 50 | 50 105 105 105 101 120 140 Average Speed 120 | 149 123 105 105 111 134 140 Slowest Speed 195 | 160 160 105 120 125 195 140 Overloaded Moves . | . . . . . . . Propulsion Burnouts . | . . . . . . . Robots Hopped . | . . . . . . . Cave-ins Triggered . | . . . . . . . Exploration Rate (%) 57 | 4 80 100 26 75 94 21 Regions Visited 6 Branch Regions 2 Pre-discovered Areas 3 | . . 2 1 . . . Known Exits Taken 2 | . . . 1 1 . . Unknown Exits Taken 3 | 1 1 1 . . . . Scrap Searched 1 | . . 1 . . . . Spaces Dug 51 | . 9 . 15 19 6 2 Terrain Destroyed 305 | . 52 . 15 58 167 13 Melee 5 | . . . . 3 . 2 Projectile 1 | . . . . 1 . . AOE 299 | . 52 . 15 54 167 11 Terrain Rammed . | . . . . . . . Walls Destroyed . | . . . . . . . Machines Disabled . | . . . . . . . Actions | -11 -10 -10 -10 -8 -8 -8 --------- Run | Yrd Mat Min Sub Mat Gar Mat Total 6269 | 77 971 1044 567 1463 1761 386 Wait 566 | . 123 186 22 152 31 52 Move 4992 | 53 713 814 528 1101 1505 278 Hop . | . . . . . . . Pick Up 89 | 5 25 10 2 23 18 6 Fast Attach 37 | 7 4 1 . 14 10 1 Attach 26 | . . 1 . 13 12 . Detach 8 | . . . . 8 . . Swap 103 | . 25 4 5 26 27 16 Drop 76 | . 16 13 . 26 18 3 Fire 292 | 12 65 14 6 96 83 16 Melee 36 | . . . 3 4 15 14 Ram 1 | . . 1 . . . . Kick . | . . . . . . . Crush . | . . . . . . . Escape Stasis 40 | . . . . . 40 . Rewire 2 | . . . . . 2 . Trap . | . . . . . . . Miscellaneous 1 | . . . 1 . . . Route ------- -11/Scrapyard -10/Materials (discovered 3 exits: *Mat x2 / [*Min]) -10/Mines (discovered 3 exits: *Mat x2 / *Sub) -10/Subcaves -8/Materials (discovered 2 exits: *Fac / Gar) -8/Garrison (discovered 3 exits: *Mat x3) -8/Materials History --------- Turn | Location | Event 13 | -11/Scrapyard | Discovered new exit (range 15) 130 | -11/Scrapyard | Entered Materials 201 | -10/Materials | Repaired Com. Wheel 303 | -10/Materials | Build established: Mutant 345 | -10/Materials | Discovered new exit (range 15) 410 | -10/Materials | Discovered new exit (range 16) 746 | -10/Materials | Discovered new exit (range 3) 1136 | -10/Materials | Core integrity fell below 50% 1187 | -10/Materials | Central database locked down 1387 | -10/Materials | Entered Mines 1407 | -10/Mines | Escorted by a lone wolf Derelict 1427 | -10/Mines | Learned location of Storage (-7) 1513 | -10/Mines | Identified exit to Materials 1597 | -10/Mines | Discovered exit to Materials (range 11) 2296 | -10/Mines | Build established: Scavenger-Mutant 2478 | -10/Mines | Discovered new exit (range 6) 2496 | -10/Mines | Entered Subcaves 2496 | -10/Subcaves | Accompanied by 1 ally 2506 | -10/Subcaves | Core integrity fell below 20% 2560 | -10/Subcaves | Discovered new exit (range 14) 2576 | -10/Subcaves | Identified exit to Materials 2592 | -10/Subcaves | Learned location of Zion (-7) 2592 | -10/Subcaves | Met a Zionite searching for "candidates" 2665 | -10/Subcaves | Visited Clippyterm 2668 | -10/Subcaves | Learned Research security intel 2761 | -10/Subcaves | Released subatomizers from SUBCON Basin 3109 | -10/Subcaves | Entered Materials 3109 | -8/Materials | Evolved 4 slots: Propulsion x1, Utility x3 3660 | -8/Materials | Repaired Rocket Launcher? 4664 | -8/Materials | Discovered new exit (range 15) 4694 | -8/Materials | Identified exit to Factory 4886 | -8/Materials | Identified exit to Garrison 4890 | -8/Materials | Entered Garrison 4904 | -8/Garrison | Triggered checkpoint 4974 | -8/Garrison | Garrison Relay disabled 5223 | -8/Garrison | Phase Generator disabled 5309 | -8/Garrison | Garrison Relay disabled 5484 | -8/Garrison | Triggered checkpoint 5519 | -8/Garrison | Core integrity fell below 50% 5605 | -8/Garrison | Lost 7 parts (2p2n2u1w) 5797 | -8/Garrison | Core integrity fell below 20% 6033 | -8/Garrison | Discovered new exit (range 15) 6049 | -8/Garrison | Identified exit to Materials 6197 | -8/Garrison | Triggered checkpoint 6268 | -8/Garrison | Lost 3 parts (1n2w) 6412 | -8/Garrison | Triggered checkpoint 6474 | -8/Garrison | Discovered exit to Materials (range 3) 6498 | -8/Garrison | Installed Relay Interface Framework 6686 | -8/Garrison | Garrison Relay disabled 6789 | -8/Garrison | Build established: Bothacker-Mutant 6831 | -8/Garrison | Expanded RIF knowledge: Threat Obfuscation 6867 | -8/Garrison | Rescued a captive Derelict 6884 | -8/Garrison | Garrison Relay disabled 6925 | -8/Garrison | Discovered exit to Materials (range 11) 7004 | -8/Garrison | Triggered checkpoint 7210 | -8/Garrison | Triggered checkpoint 7342 | -8/Garrison | Entered Materials 7881 | -8/Materials | Destroyed by H-55 Commando with Assault Rifle Last Messages --------------- 07853_ System corrupted: Matter fused (-6). 07856_ R-06 Scavenger destroyed. 07856_ G-47 Trooper destroyed. 07856_ U-05 Engineer lays Concrete. 07859_ U-05 Engineer builds a Wall. 07863_ U-05 Engineer lays Concrete. 07866_ U-05 Engineer builds a Wall. 07867_ Recycling Unit disabled. 07867_ U-05 Engineer lays Concrete. 07870_ U-05 Engineer builds a Wall. 07870_ U-05 Engineer lays Concrete. 07872_ U-05 Engineer builds a Wall. 07874_ R-06 Scavenger collects Aluminum Leg. 07875_ U-05 Engineer lays Concrete. 07877_ R-06 Scavenger collects Adv. Heat Sink. 07877_ U-05 Engineer builds a Wall. 07877_ U-05 Engineer lays Concrete. 07879_ Y-45 Defender destroyed. 07879_ ALERT: Construction progress impeded, dispatching reinforcements to local area. Map ----- +----------------------------------------------------+ | ?????????????????????????????????????????? | | ?????????????????????????????????????????? | | ?????????????????????????????????????????? | | ?????????????????????????????????????????? | | ?????????????????????????????????????????? | | ?????????????????????????????????????????? | | ?????????????????????????????????????????? | | ??????????????????????????????? ???????? | | ??????????????????????????????? #??????? | | ????????????????? ??????????? +??????? | | ????????????????? "?????????? #??????? | | ??????????????? +*%r""????????? #??????? | | ??????????????? #% [##????????? #??????? | | ??????????????? #u u##????????? #??????? | | ??????????????? # **=#????????# #??????? | | ????????????????#[%= ?????????# #??????? | | ???????????????? =* ?????????# +??????? | | ???????????????? %= ?????????# [ #??????? | | ??????????????###! ########### % #??????? | | ??????????????#"" # # #??????? | | ???????????????"Y # # #??????? | | ???????????????? # # #??????? | | ????????????????# # # #??????? | | ????????????????# # +* ######## | | ????????????????# # [#! | | ????????????????#@ # #%* | | ????????????????# # #[* | | ????????????????# #####+######+######### | | ????????????????# #???# #?# #???? | | ????????????????# #???# #?# """ #???? | | ????????????????# #???# #?# """ #???? | | ????????????????# #####+### """ #???? | | ????????????????# # # #???? | | ????????????????# # # #???? | | ?????????????#### # # #???? | | ????????????##! # # #???? | | ????????????#! h# # "T" #???? | | ????????????#! + ##########???? | | ????????????#! # #????????????? | | ????????????#! # #????????????? | | ????????????##! !# #????????????? | | ?????????????#### # #????????????? | | ????????????????# # #????????????? | | ????????????????# #########????????????? | | ????????????????# #????????????????????? | | ????????????????# #####?####???????????? | | ????????????????# ^# """ #???????????? | | ????????????????# # """"" #???????????? | | ????????######### # """"" #???????????? | | ????????#]]!!==## # """"" #???????????? | +----------------------------------------------------+ Best States ------------- Heat Dissipation 45 Energy Generation 14 Energy Capacity 515 Matter Stores 300 Matter Capacity 300 Sight Range 18 Robot Scan Range 15 Terrain Scan Range 16 Terrain Scan Density 10 Armor Coverage 300 Resistance: TH 10 Core Shielding 20 Evasion (%) 55 Targeting Accuracy 5 Recoil Reduction 2 Offensive Hacking 10 Defensive Hacking 10 Relay Coupler Types 2 Relay Coupler Value 38 Authchip Count 2 Item Schematics ----------------- Arm. Wheel | -8/Materials | Scanalyzed Robot Schematics ------------------ None Fabricated ------------ Nothing Alien Tech Used ----------------- None Achievements -------------- None Challenges ------------ None Game ------ Seed GatlingSwarmKit Manual? 0 Play Time 01:55:25 Cumulative 126.7 hours Start 2025.01.18 @ 11:27:20 End 2025.01.18 @ 13:46:59 Sessions 1 Manual Loads 0 Difficulty Rogue Special Mode None Game No. 40 Rogue 40 Adventurer 0 Explorer 0 Win Type - Total 0 Types 0/0/0/0/0/0/0/0/0 Lore% 32 Gallery% 44 Achievement% 37 Wizard Run 0 Options --------- Layout 0 ASCII 0 Keyboard 0 Movement Mouse Keybinds 0 Fullscreen 1 Font 36/Smallcaps Map View 76x50 Zoom Use 0% Tactical HUD 1 Map Filters NONE Filters NONE Steam 1 RUN: fbf49b73-4686-43d1-8bd4-a2de840f49ae